fUSD/lending_fUSD_20250204
["ID","MTS","AMOUNT","RATE_DAILY","PERIOD"]
[351658571,1738692658260,-1116.97,0.00010957,2]
[351658572,1738692658270,-702.39,0.00010957,2]
[351658573,1738692658282,-1009.36,0.00010957,2]
[351658574,1738692658291,-1278.5,0.00010957,2]
[351658575,1738692658301,-500.0,0.00010957,2]
[351658576,1738692658311,-500.0,0.00010957,2]
[351658577,1738692658320,-500.0,0.00010957,2]
[351658578,1738692658330,-500.0,0.00010957,2]
[351658579,1738692658340,-595.35,0.00010957,2]
[351658580,1738692658350,-500.0,0.00010957,2]
[351658581,1738692658359,-500.0,0.00010957,2]
[351658582,1738692658369,-500.0,0.00010957,2]
[351658583,1738692658379,-500.0,0.00010957,2]
[351658584,1738692658388,-500.0,0.00010957,2]
[351658585,1738692658397,-500.0,0.00010957,2]
[351658586,1738692658408,-565.68,0.00010957,2]
[351658587,1738692658418,-558.34,0.00010957,2]
[351658588,1738692658427,-500.0,0.00010957,2]
[351658589,1738692658437,-500.0,0.00010957,2]
[351658590,1738692658446,-1644.19,0.00010957,2]
[351658591,1738692658456,-500.0,0.00010957,2]
[351658592,1738692658465,-500.0,0.00010957,2]
[351658593,1738692658475,-500.0,0.00010957,2]
[351658594,1738692658485,-820.11,0.00010957,2]
[351658595,1738692658496,-777.25,0.00010957,2]
[351658596,1738692658505,-500.0,0.00010957,2]
[351658597,1738692658514,-592.33,0.00010957,2]
[351658598,1738692658524,-500.0,0.00010957,2]
[351658599,1738692658534,-500.0,0.00010957,2]
[351658600,1738692658544,-500.0,0.00010957,2]
[351658601,1738692658554,-1217.55,0.00010957,2]
[351658602,1738692658564,-500.0,0.00010957,2]
[351658603,1738692658573,-635.95,0.00010957,2]
[351658604,1738692658583,-500.0,0.00010957,2]
[351658605,1738692658592,-500.0,0.00010957,2]
[351658606,1738692658602,-500.0,0.00010957,2]
[351658607,1738692658612,-1100.63,0.00010957,2]
[351658608,1738692658623,-500.0,0.00010957,2]
[351658609,1738692658632,-514.24,0.00010957,2]
[351658610,1738692658642,-500.0,0.00010957,2]
[351658611,1738692658652,-500.0,0.00010957,2]
[351658612,1738692658662,-575.27,0.00010957,2]
[351658613,1738692658671,-605.9,0.00010957,2]
[351658614,1738692658680,-455.74,0.00010957,2]
[351658615,1738692658690,-500.0,0.00010957,2]
[351658616,1738692658700,-500.0,0.00010957,2]
[351658617,1738692658709,-505.91,0.00010958,2]
[351658618,1738692658720,-500.0,0.00010958,2]
[351658619,1738692658730,-629.31,0.00010958,2]
[351658620,1738692658739,-500.0,0.00010958,2]
[351658621,1738692658749,-209.33,0.00010958,2]
[351658622,1738692658759,-500.0,0.00010958,2]
[351658623,1738692658769,-637.68866315,0.00010958,2]
[351658624,1738692658778,-500.0,0.00010958,2]
[351658625,1738692658788,-500.0,0.00010958,2]
[351658626,1738692658798,-2301.93,0.00010958,2]
[351658627,1738692658808,-500.0,0.00010958,2]
[351658628,1738692658818,-500.0,0.00010958,2]
[351658629,1738692658828,-500.0,0.00010958,2]
[351658630,1738692658837,-235.34,0.00010958,2]
[351658631,1738692658848,-500.0,0.00010958,2]
[351658632,1738692658858,-500.0,0.00010958,2]
[351658633,1738692658868,-500.0,0.00010958,2]
[351658634,1738692658878,-229.39653914,0.00010958,2]
[351658635,1738692658888,-604.54,0.00010958,2]
[351658636,1738692658899,-919.24,0.00010958,2]
[351658637,1738692658909,-2414.84,0.00010958,2]
[351658638,1738692658919,-500.0,0.00010958,2]
[351658639,1738692658929,-500.0,0.00010958,2]
[351658640,1738692658939,-500.0,0.00010958,2]
[351658641,1738692658948,-500.0,0.00010958,2]
[351658642,1738692658958,-500.0,0.00010958,2]
[351658643,1738692658968,-500.0,0.00010958,2]
[351658644,1738692658978,-500.0,0.00010958,2]
[351658645,1738692658989,-500.0,0.00010958,2]
[351658646,1738692659000,-1165.38,0.00010958,2]
[351658647,1738692659010,-1016.48,0.00010958,2]
[351658648,1738692659020,-936.12,0.00010958,2]
[351658649,1738692659031,-500.0,0.00010958,2]
[351658650,1738692659041,-762.39,0.00010958,2]
[351658651,1738692659051,-514.48,0.00010958,2]
[351658652,1738692659062,-532.68,0.00010958,2]
[351658653,1738692659072,-421.14,0.00010958,2]
[351658654,1738692659082,-684.72,0.00010958,2]
[351658655,1738692659091,-502.79055418,0.00010958,2]
[351658656,1738692659101,-500.0,0.00010958,2]
[351658657,1738692659113,-500.0,0.00010958,2]
[351658658,1738692659124,-500.0,0.00010959,2]
[351658659,1738692659133,-500.0,0.00010959,2]
[351658660,1738692659142,-2000.0,0.00010959,2]
[351658661,1738692659151,-2000.0,0.00010959,2]
[351658662,1738692659161,-2000.0,0.00010959,2]
[351658663,1738692659171,-2000.0,0.00010959,2]
[351658664,1738692659181,-2000.0,0.00010959,2]
[351658665,1738692659192,-500.0,0.00010959,2]
[351658666,1738692659202,-200.0,0.00010959,2]
[351658667,1738692659212,-200.0,0.00010959,2]
[351658668,1738692659222,-200.0,0.00010959,2]
[351658669,1738692659232,-150.0,0.00010959,2]
[351658670,1738692659242,-1002.96965609,0.00010975,2]
[351658671,1738692659252,-1531.46092695,0.00010986,2]
[351658672,1738692659262,-300.0,0.00010999,2]
[351658673,1738692659273,-50000.0,0.00011,3]
[351658674,1738692659283,-5000.0,0.00011,2]
[351658675,1738692659294,-500.0,0.00011,2]
[351658676,1738692659304,-500.0,0.00011,2]
[351658677,1738692659313,-500.0,0.00011,2]
[351658678,1738692659323,-500.0,0.00011,2]
[351658679,1738692659334,-416.73,0.00011,2]
[351658680,1738692659344,-416.73,0.00011,2]
[351658681,1738692659354,-416.73,0.00011,2]
[351658682,1738692659364,-416.73,0.00011,2]
[351658683,1738692659374,-416.73,0.00011,2]
[351658684,1738692659384,-416.73,0.00011,2]
[351658685,1738692659395,-416.73,0.00011,2]
[351658686,1738692659405,-416.73,0.00011,2]
[351658687,1738692659415,-416.73,0.00011,2]
[351658688,1738692659425,-416.73,0.00011,2]
[351658689,1738692659435,-416.73,0.00011,2]
[351658690,1738692659445,-416.73,0.00011,2]
[351658691,1738692659455,-416.73,0.00011,2]
[351658692,1738692659465,-416.73,0.00011,2]
[351658693,1738692659475,-416.73,0.00011,2]
[351658694,1738692659486,-416.73,0.00011,2]
[351658695,1738692659496,-635.5627001,0.00011033,2]
[351658696,1738692659506,-1531.46092695,0.00011041,2]
[351658697,1738692659516,-983.34367506,0.00011066,2]
[351658698,1738692659528,-1002.96965609,0.00011073,2]
[351658699,1738692659539,-300.0,0.00011093,2]
[351658700,1738692659548,-500.0,0.00011094,2]
[351658701,1738692659558,-634.496518,0.00011094,2]
[351658702,1738692659570,-563.800411,0.00011094,2]
[351658703,1738692659580,-500.0,0.00011094,2]
[351658704,1738692659590,-500.0,0.00011094,2]
[351658705,1738692659600,-500.0,0.00011094,2]
[351658706,1738692659610,-500.0,0.00011094,2]
[351658707,1738692659620,-500.0,0.00011094,2]
[351658708,1738692659630,-575.71,0.00011094,2]
[351658709,1738692659641,-587.45,0.00011094,2]
[351658710,1738692659651,-177.17907289,0.00011094,2]
[351658711,1738692659662,-500.0,0.00011094,2]
[351658712,1738692659673,-500.0,0.00011094,2]
[351658713,1738692659683,-500.0,0.00011094,2]
[351658714,1738692659694,-1116.97,0.00011094,2]
[351658715,1738692659704,-702.39,0.00011094,2]
[351658716,1738692659715,-1009.36,0.00011094,2]
[351658717,1738692659726,-1278.5,0.00011094,2]
[351658718,1738692659736,-500.0,0.00011094,2]
[351658719,1738692659746,-378.68,0.00011094,2]
[351658720,1738692659757,-500.0,0.00011094,2]
[351658721,1738692659767,-500.0,0.00011094,2]
[351658722,1738692659777,-595.35,0.00011094,2]
[351658723,1738692659788,-393.55,0.00011094,2]
[351658724,1738692659798,-500.0,0.00011094,2]
[351658725,1738692659808,-525.48,0.00011094,2]
[351658726,1738692659820,-500.0,0.00011094,2]
[351658727,1738692659830,-500.0,0.00011094,2]
[351658728,1738692659841,-500.0,0.00011094,2]
[351658729,1738692659851,-565.68,0.00011094,2]
[351658730,1738692659860,-558.34,0.00011094,2]
[351658731,1738692659870,-500.0,0.00011094,2]
[351658732,1738692659880,-500.0,0.00011094,2]
[351658733,1738692659890,-1644.19,0.00011094,2]
[351658734,1738692659900,-500.0,0.00011094,2]
[351658735,1738692659910,-500.0,0.00011094,2]
[351658736,1738692659920,-500.0,0.00011094,2]
[351658737,1738692659931,-820.11,0.00011094,2]
[351658738,1738692659941,-777.25,0.00011094,2]
[351658739,1738692659951,-500.0,0.00011094,2]
[351658740,1738692659962,-592.33,0.00011094,2]
[351658741,1738692659972,-500.0,0.00011094,2]
[351658742,1738692659982,-500.0,0.00011094,2]
[351658743,1738692659992,-500.0,0.00011094,2]
[351658744,1738692660002,-1217.55,0.00011094,2]
[351658745,1738692660012,-500.0,0.00011094,2]
[351658746,1738692660023,-635.95,0.00011094,2]
[351658747,1738692660033,-500.0,0.00011094,2]
[351658748,1738692660045,-500.0,0.00011094,2]
[351658749,1738692660055,-500.0,0.00011094,2]
[351658750,1738692660068,-1100.63,0.00011094,2]
[351658751,1738692660079,-500.0,0.00011094,2]
[351658752,1738692660090,-514.24,0.00011094,2]
[351658753,1738692660099,-500.0,0.00011094,2]
[351658754,1738692660111,-500.0,0.00011094,2]
[351658755,1738692660123,-605.9,0.00011094,2]
[351658756,1738692660134,-500.0,0.00011094,2]
[351658757,1738692660144,-281.24405436,0.00011095,2]
[351658758,1738692660155,-237.59,0.00011095,2]
[351658759,1738692660165,-500.0,0.00011095,2]
[351658760,1738692660175,-185.94,0.00011095,2]
[351658761,1738692660186,-500.0,0.00011095,2]
[351658762,1738692660196,-500.0,0.00011095,2]
[351658763,1738692660206,-500.0,0.00011095,2]
[351658764,1738692660216,-500.0,0.00011095,2]
[351658765,1738692660226,-500.0,0.00011095,2]
[351658766,1738692660235,-500.0,0.00011095,2]
[351658767,1738692660246,-500.0,0.00011095,2]
[351658768,1738692660255,-500.0,0.00011095,2]
[351658769,1738692660265,-604.54,0.00011095,2]
[351658770,1738692660276,-919.24,0.00011095,2]
[351658771,1738692660286,-2414.84,0.00011095,2]
[351658772,1738692660297,-500.0,0.00011095,2]
[351658773,1738692660308,-500.0,0.00011095,2]
[351658774,1738692660320,-500.0,0.00011095,2]
[351658775,1738692660330,-500.0,0.00011095,2]
[351658776,1738692660340,-500.0,0.00011095,2]
[351658777,1738692660350,-502.19,0.00011095,2]
[351658778,1738692660361,-500.0,0.00011095,2]
[351658779,1738692660371,-500.0,0.00011095,2]
[351658780,1738692660587,-1165.38,0.00011095,2]
[351658781,1738692660600,-1016.48,0.00011095,2]
[351658782,1738692660610,-936.12,0.00011095,2]
[351658783,1738692660619,-500.0,0.00011095,2]
[351658784,1738692660629,-762.39,0.00011095,2]
[351658785,1738692660638,-514.48,0.00011095,2]
[351658786,1738692660647,-532.68,0.00011095,2]
[351658787,1738692660657,-684.72,0.00011095,2]
[351658788,1738692660666,-315.78,0.00011095,2]
[351658789,1738692660676,-500.0,0.00011095,2]
[351658790,1738692660686,-1531.46092695,0.00011096,2]
[351658791,1738692660695,-320.3,0.00011099,2]
[351658792,1738692660705,-1500.0,0.000111,2]
[351658793,1738692660714,-1500.0,0.000111,2]
[351658794,1738692660723,-1500.0,0.000111,2]
[351658795,1738692660732,-1500.0,0.000111,2]
[351658796,1738692660742,-1500.0,0.000111,2]
[351658797,1738692660751,-1500.0,0.000111,2]
[351658798,1738692660760,-1500.0,0.000111,2]
[351658799,1738692660769,-1500.0,0.000111,2]
[351658800,1738692660778,-1500.0,0.000111,2]
[351658801,1738692660788,-1965.93,0.000111,2]
[351658802,1738692660798,-366.0,0.000111,2]
[351658803,1738692660808,-746.0,0.000111,2]
[351658804,1738692660819,-431.43955898,0.00011127,2]
[351658805,1738692660828,-1531.46092695,0.00011151,2]
[351658806,1738692660837,-1002.96965609,0.0001117,2]
[351658807,1738692660847,-231.0,0.000112,2]
[351658808,1738692660856,-1531.46092695,0.00011205,2]
[351658809,1738692660866,-500.0,0.00011231,2]
[351658810,1738692660875,-634.496518,0.00011231,2]
[351658811,1738692660885,-563.800411,0.00011231,2]
[351658812,1738692660895,-500.0,0.00011231,2]
[351658813,1738692660905,-500.0,0.00011231,2]
[351658814,1738692660914,-330.53,0.00011231,2]
[351658815,1738692660924,-500.0,0.00011231,2]
[351658816,1738692660933,-500.0,0.00011231,2]
[351658817,1738692660943,-575.71,0.00011231,2]
[351658818,1738692660952,-587.45,0.00011231,2]
[351658819,1738692660962,-500.0,0.00011231,2]
[351658820,1738692660972,-500.0,0.00011231,2]
[351658821,1738692660981,-500.0,0.00011231,2]
[351658822,1738692660991,-1116.97,0.00011231,2]
[351658823,1738692661001,-702.39,0.00011231,2]
[351658824,1738692661011,-1009.36,0.00011231,2]
[351658825,1738692661021,-1278.5,0.00011231,2]
[351658826,1738692661030,-500.0,0.00011231,2]
[351658827,1738692661040,-500.0,0.00011231,2]
[351658828,1738692661050,-500.0,0.00011231,2]
[351658829,1738692661060,-595.35,0.00011231,2]
[351658830,1738692661071,-500.0,0.00011231,2]
[351658831,1738692661081,-500.0,0.00011231,2]
[351658832,1738692661091,-500.0,0.00011231,2]
[351658833,1738692661100,-500.0,0.00011231,2]
[351658834,1738692661112,-565.68,0.00011231,2]
[351658835,1738692661122,-558.34,0.00011231,2]
[351658836,1738692661131,-500.0,0.00011231,2]
[351658837,1738692661141,-500.0,0.00011231,2]
[351658838,1738692661150,-1644.19,0.00011231,2]
[351658839,1738692661160,-500.0,0.00011231,2]
[351658840,1738692661170,-500.0,0.00011231,2]
[351658841,1738692661179,-500.0,0.00011231,2]
[351658842,1738692661189,-820.11,0.00011231,2]
[351658843,1738692661200,-777.25,0.00011231,2]
[351658844,1738692661210,-500.0,0.00011231,2]
[351658845,1738692661219,-592.33,0.00011231,2]
[351658846,1738692661229,-616.88829064,0.00011231,2]
[351658847,1738692661239,-500.0,0.00011231,2]
[351658848,1738692661248,-500.0,0.00011231,2]
[351658849,1738692661257,-1217.55,0.00011231,2]
[351658850,1738692661266,-500.0,0.00011231,2]
[351658851,1738692661275,-635.95,0.00011231,2]
[351658852,1738692661285,-500.0,0.00011231,2]
[351658853,1738692661295,-500.0,0.00011231,2]
[351658854,1738692661304,-500.0,0.00011231,2]
[351658855,1738692661314,-1100.63,0.00011231,2]
[351658856,1738692661323,-247.49,0.00011231,2]
[351658857,1738692661333,-514.24,0.00011231,2]
[351658858,1738692661342,-500.0,0.00011231,2]
[351658859,1738692661352,-500.0,0.00011231,2]
[351658860,1738692661361,-605.9,0.00011231,2]
[351658861,1738692661371,-500.0,0.00011232,2]
[351658862,1738692661381,-582.26,0.00011232,2]
[351658863,1738692661390,-500.0,0.00011232,2]
[351658864,1738692661400,-2301.93,0.00011232,2]
[351658865,1738692661409,-500.0,0.00011232,2]
[351658866,1738692661420,-500.0,0.00011232,2]
[351658867,1738692661429,-500.0,0.00011232,2]
[351658868,1738692661439,-500.0,0.00011232,2]
[351658869,1738692661449,-362.24,0.00011232,2]
[351658870,1738692661458,-500.0,0.00011232,2]
[351658871,1738692661467,-604.54,0.00011232,2]
[351658872,1738692661477,-919.24,0.00011232,2]
[351658873,1738692661487,-2414.84,0.00011232,2]
[351658874,1738692661496,-500.0,0.00011232,2]
[351658875,1738692661507,-500.0,0.00011232,2]
[351658876,1738692661516,-500.0,0.00011232,2]
[351658877,1738692661526,-500.0,0.00011232,2]
[351658878,1738692661536,-500.0,0.00011232,2]
[351658879,1738692661545,-500.0,0.00011232,2]
[351658880,1738692661555,-500.0,0.00011232,2]
[351658881,1738692661564,-1165.38,0.00011232,2]
[351658882,1738692661575,-1016.48,0.00011232,2]
[351658883,1738692661585,-936.12,0.00011232,2]
[351658884,1738692661595,-500.0,0.00011232,2]
[351658885,1738692661604,-762.39,0.00011232,2]
[351658886,1738692661614,-514.48,0.00011232,2]
[351658887,1738692661623,-532.68,0.00011232,2]
[351658888,1738692661633,-684.72,0.00011232,2]
[351658889,1738692661643,-500.0,0.00011232,2]
[351658890,1738692661653,-281.24405436,0.00011244,2]
[351658891,1738692661663,-635.5627001,0.0001126,2]
[351658892,1738692661673,-11360.47254879,0.0001126,2]
[351658893,1738692661683,-983.34367506,0.0001126,2]
[351658894,1738692661692,-20740.22369563,0.0001126,2]
[351658895,1738692661703,-1531.46092695,0.0001126,2]
[351658896,1738692661712,-3745.45155337,0.00011268,2]
[351658897,1738692661722,-9335.88374754,0.00011268,2]
[351658898,1738692661732,-1002.96965609,0.00011268,2]
[351658899,1738692661742,-1246.3491236,0.00011268,2]
[351658900,1738692661752,-1531.46092695,0.00011315,2]
[351658901,1738692661762,-1531.46092695,0.00011342,2]
[351658902,1738692661771,-8115.31309958,0.00011359,2]
[351658903,1738692661781,-12061.19503398,0.00011359,2]
[351658904,1738692661790,-500.0,0.00011368,2]
[351658905,1738692661799,-634.496518,0.00011368,2]
[351658906,1738692661810,-563.800411,0.00011368,2]
[351658907,1738692661821,-500.0,0.00011368,2]
[351658908,1738692661831,-513.12,0.00011368,2]
[351658909,1738692661841,-500.0,0.00011368,2]
[351658910,1738692661850,-491.14,0.00011368,2]
[351658911,1738692661860,-575.71,0.00011368,2]
[351658912,1738692661869,-587.45,0.00011368,2]
[351658913,1738692661879,-500.0,0.00011368,2]
[351658914,1738692661889,-500.0,0.00011368,2]
[351658915,1738692661899,-500.0,0.00011368,2]
[351658916,1738692661909,-1116.97,0.00011368,2]
[351658917,1738692661919,-702.39,0.00011368,2]
[351658918,1738692661929,-1009.36,0.00011368,2]
[351658919,1738692661939,-1278.5,0.00011368,2]
[351658920,1738692661948,-500.0,0.00011368,2]
[351658921,1738692661958,-500.0,0.00011368,2]
[351658922,1738692661968,-500.0,0.00011368,2]
[351658923,1738692661977,-595.35,0.00011368,2]
[351658924,1738692661988,-500.0,0.00011368,2]
[351658925,1738692661998,-500.0,0.00011368,2]
[351658926,1738692662008,-500.0,0.00011368,2]
[351658927,1738692662018,-500.0,0.00011368,2]
[351658928,1738692662029,-558.34,0.00011368,2]
[351658929,1738692662039,-565.68,0.00011368,2]
[351658930,1738692662049,-500.0,0.00011368,2]
[351658931,1738692662059,-500.0,0.00011368,2]
[351658932,1738692662074,-1644.19,0.00011368,2]
[351658933,1738692662083,-500.0,0.00011368,2]
[351658934,1738692662094,-500.0,0.00011368,2]
[351658935,1738692662104,-500.0,0.00011368,2]
[351658936,1738692662118,-820.11,0.00011368,2]
[351658937,1738692662128,-777.25,0.00011368,2]
[351658938,1738692662138,-500.0,0.00011368,2]
[351658939,1738692662148,-592.33,0.00011368,2]
[351658940,1738692662159,-500.0,0.00011368,2]
[351658941,1738692662169,-500.0,0.00011368,2]
[351658942,1738692662178,-1217.55,0.00011368,2]
[351658943,1738692662190,-500.0,0.00011368,2]
[351658944,1738692662201,-635.95,0.00011368,2]
[351658945,1738692662212,-500.0,0.00011368,2]
[351658946,1738692662224,-500.0,0.00011368,2]
[351658947,1738692662235,-500.0,0.00011368,2]
[351658948,1738692662246,-1100.63,0.00011368,2]
[351658949,1738692662257,-514.24,0.00011368,2]
[351658950,1738692662267,-500.0,0.00011368,2]
[351658951,1738692662278,-500.0,0.00011368,2]
[351658952,1738692662289,-605.9,0.00011368,2]
[351658953,1738692662299,-500.0,0.00011369,2]
[351658954,1738692662309,-500.0,0.00011369,2]
[351658955,1738692662331,-500.0,0.00011369,2]
[351658956,1738692662342,-500.0,0.00011369,2]
[351658957,1738692662353,-500.0,0.00011369,2]
[351658958,1738692662364,-500.0,0.00011369,2]
[351658959,1738692662375,-500.0,0.00011369,2]
[351658960,1738692662385,-604.54,0.00011369,2]
[351658961,1738692662396,-919.24,0.00011369,2]
[351658962,1738692662406,-2414.84,0.00011369,2]
[351658963,1738692662417,-500.0,0.00011369,2]
[351658964,1738692662428,-500.0,0.00011369,2]
[351658965,1738692662438,-500.0,0.00011369,2]
[351658966,1738692662449,-500.0,0.00011369,2]
[351658967,1738692662459,-500.0,0.00011369,2]
[351658968,1738692662469,-500.0,0.00011369,2]
[351658969,1738692662479,-500.0,0.00011369,2]
[351658970,1738692662489,-1165.38,0.00011369,2]
[351658971,1738692662499,-1016.48,0.00011369,2]
[351658972,1738692662508,-936.12,0.00011369,2]
[351658973,1738692662517,-500.0,0.00011369,2]
[351658974,1738692662527,-762.39,0.00011369,2]
[351658975,1738692662545,-514.48,0.00011369,2]
[351658976,1738692662555,-532.68,0.00011369,2]
[351658977,1738692662565,-684.72,0.00011369,2]
[351658978,1738692662575,-500.0,0.00011369,2]
[351658979,1738692662584,-431.43955898,0.00011389,2]
[351658980,1738692662593,-281.24405436,0.00011394,2]
[351658981,1738692662603,-1531.46092695,0.00011397,2]
[351658982,1738692662613,-1531.46092695,0.00011452,2]
[351658983,1738692662622,-500.0,0.00011505,2]
[351658984,1738692662632,-634.496518,0.00011505,2]
[351658985,1738692662641,-563.800411,0.00011505,2]
[351658986,1738692662652,-500.0,0.00011505,2]
[351658987,1738692662662,-500.0,0.00011505,2]
[351658988,1738692662671,-575.71,0.00011505,2]
[351658989,1738692662681,-587.45,0.00011505,2]
[351658990,1738692662691,-500.0,0.00011505,2]
[351658991,1738692662701,-500.0,0.00011505,2]
[351658992,1738692662712,-500.0,0.00011505,2]
[351658993,1738692662723,-1116.97,0.00011505,2]
[351658994,1738692662733,-702.39,0.00011505,2]
[351658995,1738692662743,-1009.36,0.00011505,2]
[351658996,1738692662753,-1278.5,0.00011505,2]
[351658997,1738692662763,-500.0,0.00011505,2]
[351658998,1738692662773,-500.0,0.00011505,2]
[351658999,1738692662783,-362.45378807,0.00011505,2]
[351659000,1738692662792,-595.35,0.00011505,2]
[351659001,1738692662801,-500.0,0.00011505,2]
[351659002,1738692662811,-500.0,0.00011505,2]
[351659003,1738692662832,-500.0,0.00011505,2]
[351659004,1738692662842,-500.0,0.00011505,2]
[351659005,1738692662852,-558.34,0.00011505,2]
[351659006,1738692662862,-565.68,0.00011505,2]
[351659007,1738692662872,-500.0,0.00011505,2]
[351659008,1738692662882,-500.0,0.00011505,2]
[351659009,1738692662892,-1644.19,0.00011505,2]
[351659010,1738692662901,-500.0,0.00011505,2]
[351659011,1738692662911,-500.0,0.00011505,2]
[351659012,1738692662921,-500.0,0.00011505,2]
[351659013,1738692662931,-820.11,0.00011505,2]
[351659014,1738692662940,-777.25,0.00011505,2]
[351659015,1738692662950,-500.0,0.00011505,2]
[351659016,1738692662962,-592.33,0.00011505,2]
[351659017,1738692662972,-500.0,0.00011505,2]
[351659018,1738692662982,-500.0,0.00011505,2]
[351659019,1738692662992,-1217.55,0.00011505,2]
[351659020,1738692663002,-202.48008344,0.00011505,2]
[351659021,1738692663013,-635.95,0.00011505,2]
[351659022,1738692663024,-500.0,0.00011505,2]
[351659023,1738692663036,-229.48,0.00011505,2]
[351659024,1738692663047,-500.0,0.00011505,2]
[351659025,1738692663057,-1100.63,0.00011505,2]
[351659026,1738692663069,-514.24,0.00011505,2]
[351659027,1738692663082,-500.0,0.00011505,2]
[351659028,1738692663095,-500.0,0.00011505,2]
[351659029,1738692663108,-605.9,0.00011505,2]
[351659030,1738692663123,-500.0,0.00011506,2]
[351659031,1738692663135,-500.0,0.00011506,2]
[351659032,1738692663146,-2301.93,0.00011506,2]
[351659033,1738692663159,-500.0,0.00011506,2]
[351659034,1738692663171,-500.0,0.00011506,2]
[351659035,1738692663183,-281.63,0.00011506,2]
[351659036,1738692663195,-323.47388218,0.00011506,2]
[351659037,1738692663209,-500.0,0.00011506,2]
[351659038,1738692663222,-604.54,0.00011506,2]
[351659039,1738692663235,-919.24,0.00011506,2]
[351659040,1738692663248,-2414.84,0.00011506,2]
[351659041,1738692663262,-299.58,0.00011506,2]
[351659042,1738692663274,-500.0,0.00011506,2]
[351659043,1738692663285,-500.0,0.00011506,2]
[351659044,1738692663296,-500.0,0.00011506,2]
[351659045,1738692663307,-500.0,0.00011506,2]
[351659046,1738692663327,-544.44096548,0.00011506,2]
[351659047,1738692663340,-500.0,0.00011506,2]
[351659048,1738692663353,-1165.38,0.00011506,2]
[351659049,1738692663366,-1016.48,0.00011506,2]
[351659050,1738692663378,-936.12,0.00011506,2]
[351659051,1738692663391,-500.0,0.00011506,2]
[351659052,1738692663404,-762.39,0.00011506,2]
[351659053,1738692663416,-514.48,0.00011506,2]
[351659054,1738692663428,-532.68,0.00011506,2]
[351659055,1738692663441,-684.72,0.00011506,2]
[351659056,1738692663454,-237.53836832,0.00011506,2]
[351659057,1738692663468,-2751.0,0.00011507,2]
[351659058,1738692663482,-1531.46092695,0.00011507,2]
[351659059,1738692663494,-281.24405436,0.00011543,2]
[351659060,1738692663508,-154.650166,0.00011554,7]
[351659061,1738692663522,-1531.46092695,0.00011562,2]
[351659062,1738692663535,-136637.43265235,0.00011635,2]
[351659063,1738692663877,-500.0,0.00011094,2]
[351659064,1738692663890,-2652.80368709,0.00011635,2]
[351659065,1738692663906,-51768.80747859,0.00011635,2]
[351659066,1738692663930,-147396.9700025,0.00011635,2]
[351659067,1738692663944,-239191.9999998,0.00011635,2]
[351659068,1738692663958,-4339.800001,0.00011635,2]
[351659069,1738692663972,-2789.08666473,0.00011635,2]
[351659074,1738692904516,16000.0,0.00018886,120]